bitfinex-derivatives/quotes_SOLF0:USTF0_20230404
["timestamp","ask_amount","ask_price","bid_price","bid_amount"]
[1680638227810,35.6763066,20.94,20.933,23.87]
[1680638228005,10.0,20.939,20.933,23.87]
[1680638228609,45.5092,20.941,20.933,23.87]
[1680638228809,35.67668894,20.94,20.933,23.87]
[1680638229105,10.0,20.939,20.933,23.87]
[1680638229303,35.67668894,20.94,20.933,23.87]
[1680638229304,45.5092,20.941,20.933,23.87]
[1680638229505,10.0,20.939,20.933,23.87]
[1680638230007,10.0,20.94,20.933,23.87]
[1680638230208,35.67684018,20.939,20.933,23.87]
[1680638230408,10.0,20.938,20.933,23.87]
[1680638231007,10.0,20.94,20.933,23.87]
[1680638231310,35.67691955,20.939,20.933,23.87]
[1680638231511,10.0,20.939,20.933,23.87]
[1680638231912,10.0,20.94,20.933,23.87]
[1680638232210,45.5092,20.941,20.931,23.72]
[1680638232412,45.5092,20.941,20.932,10.0]
[1680638232811,45.5092,20.941,20.931,23.72]
[1680638235010,10.0,20.939,20.931,23.72]
[1680638235714,45.5092,20.941,20.931,23.72]
[1680638236514,35.6674942,20.94,20.931,23.72]
[1680638242123,54.6574942,20.94,20.933,19.04]
[1680638242323,35.6674942,20.939,20.933,19.04]
[1680638242523,18.99,20.94,20.933,19.04]
[1680638247428,35.67537946,20.939,20.933,19.04]
[1680638248224,18.99,20.94,20.933,19.04]
[1680638249227,35.67603525,20.939,20.933,19.04]
[1680638249521,18.99,20.94,20.933,19.04]
[1680638251136,35.67650794,20.939,20.933,19.04]
[1680638251336,10.0,20.938,20.933,19.04]
[1680638251737,18.99,20.94,20.933,19.04]
[1680638252139,18.99,20.938,20.932,19.04]
[1680638262939,45.5092,20.941,20.935,19.01]
[1680638264946,35.65757094,20.94,20.935,19.01]
[1680638266147,19.18639135,20.942,20.935,19.01]
[1680638266349,35.65686224,20.941,20.935,19.01]
[1680638291778,19.18639135,20.942,20.935,19.01]
[1680638292982,35.64756234,20.941,20.935,19.01]
[1680638303590,19.18639135,20.942,20.935,19.01]
[1680638306897,35.66715516,20.941,20.935,19.01]
[1680638307287,10.0,20.94,20.935,19.01]
[1680638307592,35.66715516,20.939,20.935,19.01]
[1680638307793,19.18639135,20.942,20.935,19.01]
[1680638307992,10.0,20.94,20.935,19.01]
[1680638308193,35.66763955,20.939,20.935,19.01]
[1680638308492,10.0,20.938,20.935,19.01]
[1680638309091,10.0,20.94,20.935,19.01]
[1680638309798,10.0,20.941,20.935,19.01]
[1680638309995,10.0,20.939,20.935,19.01]
[1680638311897,19.18639135,20.942,20.935,19.01]
[1680638312197,19.12,20.94,20.933,19.01]
[1680638312391,35.6579081,20.939,20.933,19.01]
[1680638314801,19.12,20.94,20.933,19.01]
[1680638321903,0.06639135,20.942,20.937,19.04]
[1680638322102,19.12,20.943,20.937,19.04]
[1680638322401,35.64706921,20.942,20.937,19.04]
[1680638328908,35.64706921,20.942,20.941,19.04]
[1680638329107,0.06961219,20.947,20.941,19.04]
[1680638329406,54.63018222,20.948,20.941,19.04]
[1680638329603,35.64018222,20.947,20.941,19.04]
[1680638330507,35.64018222,20.947,20.945,19.04]
[1680638330805,35.64018222,20.946,20.945,19.04]
[1680638331110,35.64018222,20.95,20.945,19.04]
[1680638331302,35.64018222,20.949,20.945,19.04]
[1680638331504,35.64018222,20.948,20.945,19.04]
[1680638332106,35.64018222,20.947,20.942,19.04]
[1680638332304,35.64018222,20.946,20.942,19.04]
[1680638332504,35.64018222,20.945,20.942,19.04]
[1680638332705,19.12,20.949,20.942,19.04]
[1680638333006,35.6406068,20.948,20.942,19.04]
[1680638333208,10.0,20.947,20.942,19.04]
[1680638333408,35.6406068,20.946,20.942,19.04]
[1680638334008,19.12,20.949,20.942,19.04]
[1680638334308,35.64058839,20.948,20.942,19.04]
[1680638334610,10.0,20.947,20.942,19.04]
[1680638334800,35.64058839,20.946,20.942,19.04]
[1680638335006,10.0,20.945,20.942,19.04]
[1680638335499,10.0,20.947,20.942,19.04]
[1680638335704,10.0,20.948,20.942,19.04]
[1680638335705,35.6404074,20.946,20.942,19.04]
[1680638335904,35.6404074,20.947,20.942,19.04]
[1680638336204,45.64044731,20.946,20.942,19.04]
[1680638336509,35.64044731,20.945,20.942,19.04]
[1680638337208,10.0,20.946,20.942,19.04]
[1680638337409,19.12,20.949,20.942,19.04]
[1680638337610,35.64028437,20.948,20.942,19.04]
[1680638337810,10.0,20.947,20.942,19.04]
[1680638338011,35.64028437,20.946,20.942,19.04]
[1680638338908,19.12,20.949,20.942,19.04]
[1680638339115,35.64049514,20.948,20.942,19.04]
[1680638339412,10.0,20.947,20.942,19.04]
[1680638339710,35.64049514,20.946,20.942,19.04]
[1680638341614,19.12,20.949,20.942,19.04]
[1680638341816,10.0,20.947,20.942,19.04]
[1680638342014,35.6403985,20.946,20.942,19.04]
[1680638342413,35.6403985,20.948,20.942,19.04]
[1680638342714,35.64015314,20.947,20.942,19.04]
[1680638342919,35.64015314,20.948,20.942,19.04]
[1680638349513,19.12,20.949,20.942,19.04]
[1680638350216,19.12,20.952,20.945,19.04]
[1680638350417,37.38645947,20.951,20.945,19.04]
[1680638350613,35.63112,20.95,20.945,19.04]
[1680638350816,35.63112,20.949,20.945,19.04]
[1680638351016,35.63112,20.951,20.945,19.04]
[1680638351211,35.63112,20.95,20.945,19.04]
[1680638351415,35.63112,20.949,20.945,19.04]
[1680638351616,35.63112,20.948,20.945,19.04]
[1680638351817,19.12,20.952,20.945,19.04]
[1680638352019,37.38522251,20.951,20.946,19.04]
[1680638352221,35.62990538,20.95,20.946,19.04]
[1680638352420,35.62990538,20.949,20.946,19.04]
[1680638352620,45.62990538,20.948,20.946,19.04]
[1680638352821,10.0,20.948,20.946,19.04]
[1680638353022,10.0,20.952,20.946,19.04]
[1680638353225,37.38624615,20.951,20.946,19.04]
[1680638353414,45.63091106,20.95,20.946,19.04]
[1680638353620,35.63091106,20.949,20.946,19.04]
[1680638354625,35.63091106,20.951,20.946,19.04]
[1680638354925,10.0,20.952,20.946,19.04]
[1680638354926,35.63091106,20.95,20.946,19.04]
[1680638355127,35.63091106,20.951,20.946,19.04]
[1680638355327,45.63091106,20.95,20.946,19.04]
[1680638355624,35.63091106,20.949,20.946,19.04]
[1680638356924,35.63091106,20.951,20.946,19.04]
[1680638357226,10.0,20.949,20.946,19.04]
[1680638358222,10.0,20.95,20.946,19.04]
[1680638358424,35.63128356,20.949,20.946,19.04]
[1680638358726,10.0,20.952,20.946,19.04]
[1680638358727,10.0,20.948,20.946,19.04]
[1680638358927,10.0,20.952,20.946,19.04]
[1680638359231,10.0,20.95,20.946,19.04]
[1680638359430,35.6313127,20.949,20.946,19.04]
[1680638360229,63.24735271,20.953,20.946,19.04]
[1680638360430,37.38616279,20.952,20.946,19.04]
[1680638360629,47.38616279,20.951,20.946,19.04]
[1680638360933,35.63082896,20.95,20.946,19.04]
[1680638361230,35.63082896,20.949,20.946,19.04]
[1680638361423,10.0,20.951,20.946,19.04]
[1680638361626,35.63085673,20.95,20.946,19.04]
[1680638362118,35.63085673,20.949,20.946,19.04]
[1680638362324,10.0,20.951,20.946,19.04]
[1680638362524,35.63093086,20.95,20.946,19.04]
[1680638362925,35.63093086,20.949,20.946,19.04]
[1680638363128,10.0,20.951,20.946,19.04]
[1680638363432,35.63095932,20.95,20.946,19.04]
[1680638363730,63.24735271,20.953,20.946,19.04]
[1680638364031,10.0,20.951,20.946,19.04]
[1680638364229,35.63104438,20.95,20.946,19.04]
[1680638365027,35.63104438,20.952,20.946,19.04]
[1680638365326,47.38611335,20.951,20.946,19.04]
[1680638365531,35.63078026,20.95,20.946,19.04]
[1680638365832,35.63078026,20.949,20.946,19.04]
[1680638366034,10.0,20.951,20.946,19.04]
[1680638366232,35.6309439,20.95,20.946,19.04]
[1680638366430,35.6309439,20.951,20.946,19.04]
[1680638366734,19.12,20.949,20.943,19.04]
[1680638369333,63.24735271,20.953,20.946,19.01]
[1680638369533,35.60861248,20.952,20.947,10.0]
[1680638369935,35.60861248,20.952,20.946,19.01]
[1680638371035,19.12,20.953,20.946,19.01]
[1680638371633,35.61360514,20.952,20.946,19.01]
[1680638372035,35.61360514,20.952,20.948,19.04]
[1680638372235,14.3549022,20.954,20.948,19.04]
[1680638372436,35.613596,20.953,20.948,19.04]
[1680638372636,35.613596,20.952,20.948,19.04]
[1680638372839,19.12,20.955,20.948,19.04]
[1680638373039,37.36876755,20.954,20.948,19.04]
[1680638373238,19.12,20.955,20.948,19.04]
[1680638373539,35.60419252,20.954,20.948,19.04]
[1680638382044,35.60419252,20.954,20.95,19.04]
[1680638386244,0.07005392,20.957,20.953,19.04]
[1680638386440,35.56889872,20.962,20.956,19.01]
[1680638386947,46.4625,20.967,20.96,19.01]
[1680638386948,65.4525,20.967,20.96,19.01]
[1680638388244,46.4625,20.967,20.963,19.01]
[1680638392043,46.4625,20.967,20.956,0.06232368]
[1680638392243,46.4625,20.967,20.96,23.83]
[1680638392844,46.4625,20.967,20.956,0.06232368]
[1680638392845,1.75430606,20.966,20.956,23.89232368]
[1680638393145,10.0,20.965,20.956,23.89232368]
[1680638394243,1.75431831,20.964,20.956,0.06232368]
[1680638394449,23.83,20.963,20.956,0.06232368]
[1680638395046,10.0,20.962,20.956,0.06232368]
[1680638395242,10.0,20.962,20.953,23.83]
[1680638396650,23.83,20.963,20.953,23.83]
[1680638405558,23.69107339,20.966,20.956,23.83]
[1680638405757,1.75417631,20.965,20.956,23.83]
[1680638406360,0.07107339,20.966,20.962,23.83]
[1680638406560,46.1658,20.97,20.962,23.83]
[1680638406763,1.75388019,20.969,20.962,23.83]
[1680638407160,46.1658,20.97,20.962,23.83]
[1680638407361,0.06410663,20.971,20.962,23.83]
[1680638409467,0.06410663,20.971,20.965,23.83]
[1680638409662,1.75368784,20.971,20.965,23.83]
[1680638409864,10.06909087,20.975,20.965,23.83]
[1680638410166,1.75368395,20.974,20.965,23.83]
[1680638410567,1.75368395,20.973,20.965,23.83]
[1680638410767,1.75368395,20.972,20.965,23.83]
[1680638410967,1.75368395,20.971,20.965,23.83]
[1680638411166,10.06909087,20.975,20.965,23.83]
[1680638411467,1.75368577,20.974,20.965,23.83]
[1680638411668,1.75368577,20.973,20.965,23.83]
[1680638411865,1.75368577,20.972,20.965,23.83]
[1680638412066,1.75368577,20.971,20.965,23.83]
[1680638412367,10.06909087,20.975,20.965,23.83]
[1680638412567,1.75368865,20.974,20.965,23.83]
[1680638412768,11.75368865,20.973,20.965,23.83]
[1680638413068,1.75368865,20.972,20.965,23.83]
[1680638413262,1.75368865,20.971,20.965,23.83]
[1680638413467,10.0,20.974,20.965,23.83]
[1680638413668,1.75362527,20.973,20.965,23.83]
[1680638413870,1.75362527,20.972,20.965,23.83]
[1680638414065,1.75362527,20.971,20.965,23.83]
[1680638414368,10.06909087,20.975,20.965,23.83]
[1680638414568,1.75363984,20.974,20.965,23.83]
[1680638415372,1.82273071,20.975,20.965,23.83]
[1680638415567,1.75363984,20.974,20.965,23.83]
[1680638415868,1.75363984,20.973,20.965,23.83]
[1680638416070,1.75363984,20.972,20.965,23.83]
[1680638416264,1.75363984,20.971,20.965,23.83]
[1680638416470,1.75363984,20.974,20.965,23.83]
[1680638416663,1.75363984,20.973,20.965,23.83]
[1680638416867,1.75363984,20.972,20.965,23.83]
[1680638417063,1.75363984,20.971,20.965,23.83]
[1680638417270,1.75363984,20.97,20.965,23.83]
[1680638417474,10.06909087,20.975,20.965,23.83]
[1680638417675,1.75364402,20.974,20.965,23.83]
[1680638417877,1.75364402,20.973,20.965,23.83]
[1680638418072,0.06909087,20.975,20.965,23.83]
[1680638418073,1.75364402,20.972,20.965,23.83]
[1680638418376,1.75364402,20.971,20.965,23.83]
[1680638418573,1.75364402,20.97,20.965,23.83]
[1680638418874,10.06909087,20.975,20.965,23.83]
[1680638419174,1.75364788,20.974,20.965,23.83]
[1680638419373,1.75364788,20.973,20.965,23.83]
[1680638419574,1.75364788,20.972,20.965,23.83]
[1680638419771,1.75364788,20.971,20.965,23.83]
[1680638420075,10.06909087,20.975,20.965,23.83]
[1680638420276,1.75362425,20.974,20.965,23.83]
[1680638420473,1.75362425,20.973,20.965,23.83]
[1680638420672,1.75362425,20.972,20.965,23.83]
[1680638420873,1.75362425,20.971,20.965,23.83]
[1680638421073,10.06909087,20.975,20.965,23.83]
[1680638421272,1.75363207,20.974,20.965,23.83]
[1680638421473,1.75363207,20.973,20.965,23.83]
[1680638421773,1.75363207,20.972,20.965,23.83]
[1680638421976,1.75363207,20.971,20.967,23.83]
[1680638422175,0.06909087,20.975,20.967,23.83]
[1680638422373,1.82270685,20.975,20.967,23.83]
[1680638428281,25.44270685,20.975,20.964,72.0144]
[1680638428580,23.62,20.972,20.963,0.06067308]
[1680638428780,10.0,20.971,20.963,0.06067308]
[1680638429280,57.7631,20.971,20.963,0.06067308]
[1680638430881,47.7631,20.971,20.963,0.06067308]
[1680638435484,23.79,20.968,20.958,23.83]
[1680638435685,10.0,20.967,20.958,23.83]
[1680638436683,23.79,20.968,20.958,23.83]
[1680638443393,23.83,20.966,20.955,23.89977215]
[1680638443594,10.0,20.965,20.955,23.89977215]
[1680638444693,23.83,20.966,20.955,23.89977215]
[1680638447392,23.79,20.963,20.955,0.06977215]
[1680638447599,23.83,20.961,20.955,0.06977215]
[1680638447896,23.83,20.961,20.951,0.0675684]
[1680638448096,23.83,20.958,20.951,0.0675684]
[1680638448296,10.0,20.957,20.951,0.0675684]
[1680638448596,10.0,20.957,20.947,23.8951746]
[1680638448999,23.83,20.958,20.947,23.8951746]
[1680638451998,0.06740498,20.959,20.95,23.83]
[1680638458107,0.06740498,20.959,20.953,23.83]
[1680638458307,0.06009432,20.963,20.953,23.83]
[1680638458509,10.06009432,20.963,20.953,23.83]
[1680638459007,0.06009432,20.963,20.953,23.83]
[1680638464404,0.06009432,20.963,20.958,23.83]
[1680638464608,37.36491097,20.968,20.958,23.83]
[1680638464812,45.54423137,20.967,20.958,23.83]
[1680638465013,0.06692434,20.968,20.958,23.83]
[1680638465206,1.82067691,20.968,20.958,23.83]
[1680638465411,35.54408411,20.967,20.958,23.83]
[1680638465814,0.06692434,20.968,20.958,23.83]
[1680638466013,37.36459752,20.968,20.958,23.83]
[1680638466217,35.54392359,20.967,20.958,23.83]
[1680638466515,0.06692434,20.968,20.958,23.83]
[1680638466719,1.82067316,20.968,20.958,23.83]
[1680638467015,35.54387055,20.967,20.961,23.83]
[1680638467517,37.29779568,20.966,20.961,23.83]
[1680638467713,35.54387055,20.965,20.961,23.83]
[1680638467915,0.06692434,20.968,20.961,23.83]
[1680638468710,37.37434075,20.968,20.961,23.83]
[1680638468917,35.55349235,20.967,20.961,23.83]
[1680638469216,35.55349235,20.966,20.961,23.83]
[1680638469417,0.06692434,20.968,20.961,23.83]
[1680638469718,10.06692434,20.968,20.961,23.83]
[1680638469918,37.29777531,20.967,20.961,23.83]
[1680638470216,47.29777531,20.966,20.958,23.83]
[1680638470418,69.37402436,20.965,20.954,46.8549]
[1680638470619,23.83,20.965,20.954,46.8549]
[1680638472120,43.6324,20.967,20.957,23.83]
[1680638472419,35.54516784,20.966,20.957,23.83]
[1680638472820,0.06692434,20.968,20.96,23.83]
[1680638473420,37.36562122,20.968,20.96,23.83]
[1680638473620,35.54492904,20.967,20.96,23.83]
[1680638473918,35.54492904,20.966,20.96,23.83]
[1680638474121,0.06692434,20.968,20.96,23.83]
[1680638474822,37.36531759,20.968,20.96,23.83]
[1680638475021,35.54463111,20.967,20.96,23.83]
[1680638475224,35.54463111,20.966,20.96,23.83]
[1680638475424,0.06692434,20.968,20.96,23.83]
[1680638476123,37.36519551,20.968,20.96,23.83]
[1680638476324,35.54451114,20.967,20.96,23.83]
[1680638476625,35.54451114,20.966,20.96,23.83]
[1680638476826,0.06692434,20.968,20.96,23.83]
[1680638477520,37.36511016,20.968,20.96,23.83]
[1680638477723,35.54442709,20.967,20.96,23.83]
[1680638477924,35.54442709,20.966,20.96,23.83]
[1680638478121,0.06692434,20.968,20.96,23.83]
[1680638478825,0.06692434,20.968,20.955,10.0]
[1680638478826,0.06692434,20.968,20.964,23.83]
[1680638479017,0.06234747,20.973,20.964,23.83]
[1680638479222,47.35344833,20.973,20.964,23.83]
[1680638479420,37.29110086,20.972,20.964,23.83]
[1680638479623,47.29110086,20.971,20.964,23.83]
[1680638479821,35.53746887,20.97,20.964,23.83]
[1680638480021,10.0,20.969,20.964,23.83]
[1680638480425,10.06234747,20.973,20.964,23.83]
[1680638480627,37.29070441,20.972,20.964,23.83]
[1680638480926,47.29070441,20.971,20.964,23.83]
[1680638481129,45.53707964,20.97,20.964,23.83]
[1680638481327,35.53707964,20.969,20.964,23.83]
[1680638481527,10.0,20.968,20.96,23.83]
[1680638481729,35.54306537,20.967,20.96,23.83]
[1680638482428,35.54306537,20.966,20.96,23.83]
[1680638482626,35.54306537,20.969,20.96,23.83]
[1680638482930,37.29693592,20.968,20.96,38.42380611]
[1680638483129,35.54319953,20.967,20.96,38.42380611]
[1680638483330,35.54319953,20.966,20.96,38.42380611]
[1680638483531,100.0,20.971,20.96,38.42380611]
[1680638483731,37.29713464,20.97,20.96,38.42380611]
[1680638484030,37.29713464,20.969,20.96,38.42380611]
[1680638484229,37.29713464,20.968,20.96,38.42380611]
[1680638484430,35.5433947,20.967,20.96,38.42380611]
[1680638484629,35.5433947,20.966,20.96,38.42380611]
[1680638484822,100.0,20.971,20.96,38.42380611]
[1680638485026,37.29711202,20.97,20.96,38.42380611]
[1680638485226,37.29711202,20.969,20.96,38.42380611]
[1680638485423,37.29711202,20.968,20.96,38.42380611]
[1680638485627,35.54337249,20.967,20.96,38.42380611]
[1680638485830,35.54337249,20.966,20.96,38.42380611]
[1680638486031,100.0,20.971,20.96,38.42380611]
[1680638486231,37.29703786,20.97,20.96,38.42380611]
[1680638486430,37.29703786,20.969,20.96,38.42380611]
[1680638486631,37.29703786,20.968,20.96,38.42380611]
[1680638486831,35.54329966,20.967,20.96,38.42380611]
[1680638487032,35.54329966,20.966,20.96,38.42380611]
[1680638487236,35.54329966,20.97,20.96,38.42380611]
[1680638487532,37.29394993,20.969,20.96,38.42380611]
[1680638487735,37.29394993,20.968,20.96,38.42380611]
[1680638488033,35.54026745,20.967,20.96,38.42380611]
[1680638488331,35.54026745,20.966,20.96,38.42380611]
[1680638488527,23.79,20.972,20.96,38.42380611]
[1680638488733,35.53461774,20.971,20.963,23.83]
[1680638488931,35.53461774,20.97,20.963,23.83]
[1680638489126,35.59696521,20.973,20.963,23.83]
[1680638489332,37.28814605,20.972,20.963,23.83]
[1680638489533,35.53456727,20.971,20.963,23.83]
[1680638489733,35.53456727,20.97,20.963,23.83]
[1680638489932,0.06234747,20.973,20.963,23.83]
[1680638490129,1.81593161,20.973,20.963,23.83]
[1680638490335,35.53484616,20.972,20.963,23.83]
[1680638490735,35.59719363,20.973,20.963,23.83]
[1680638491035,1.75358616,20.972,20.963,23.83]
[1680638491234,35.53484616,20.971,20.963,23.83]
[1680638491736,35.53484616,20.97,20.963,23.83]
[1680638492033,0.06234747,20.973,20.963,23.83]
[1680638492234,37.35157117,20.973,20.963,23.83]
[1680638492435,37.2892237,20.972,20.963,23.83]
[1680638492738,35.53562439,20.971,20.963,23.83]
[1680638492933,35.53562439,20.97,20.963,23.83]
[1680638493134,0.06234747,20.973,20.963,23.83]
[1680638493334,37.35151538,20.973,20.963,23.83]
[1680638493537,37.28916791,20.972,20.963,23.83]
[1680638493737,35.5355707,20.971,20.963,23.83]
[1680638493939,35.5355707,20.97,20.963,23.83]
[1680638494139,0.06234747,20.973,20.963,23.83]
[1680638494355,35.59788652,20.973,20.97,23.83]
[1680638494536,44.3197,20.981,20.97,23.83]
[1680638494537,0.06471117,20.979,20.97,23.83]
[1680638494737,37.26509162,20.975,20.97,23.83]
[1680638494942,35.51193572,20.974,20.97,23.83]
[1680638495142,0.06471117,20.979,20.97,23.83]
[1680638495836,37.32977682,20.979,20.97,23.83]
[1680638496042,37.26506565,20.978,20.97,23.83]
[1680638496233,37.26506565,20.977,20.97,23.83]
[1680638496436,37.26506565,20.976,20.97,23.83]
[1680638496742,37.26506565,20.975,20.97,23.83]
[1680638496942,35.51193572,20.974,20.97,23.83]
[1680638497143,35.51193572,20.978,20.97,23.83]
[1680638497345,37.26411595,20.977,20.97,23.83]
[1680638497538,37.26411595,20.976,20.97,23.83]
[1680638497739,37.26411595,20.975,20.97,23.83]
[1680638498043,35.51096746,20.974,20.97,23.83]
[1680638498238,35.51096746,20.978,20.97,23.83]
[1680638498439,1.75315504,20.977,20.97,23.83]
[1680638498638,35.51096746,20.976,20.97,23.83]
[1680638498939,1.75315504,20.975,20.97,23.83]
[1680638499133,35.51096746,20.974,20.97,23.83]
[1680638499540,14.54116907,20.979,20.97,23.83]
[1680638499746,37.26428011,20.978,20.97,23.83]
[1680638499941,23.83,20.997,20.979,23.76]
[1680638500250,1.75222485,20.996,20.984,23.83]
[1680638500642,25.58222485,20.996,20.984,23.83]
[1680638500848,1.75222485,20.995,20.984,23.83]
[1680638501049,145.15222485,20.995,20.984,23.83]
[1680638501245,1.75222485,20.994,20.984,23.83]
[1680638501648,1.75222485,20.993,20.984,23.83]
[1680638501849,1.75222485,20.992,20.984,23.83]
[1680638502152,1.75222485,20.991,20.984,23.83]
[1680638502450,1.75222485,20.99,20.984,23.83]
[1680638502645,1.75222485,20.989,20.984,23.83]
[1680638502850,1.75222485,20.988,20.984,23.83]
[1680638503048,1.75222485,20.989,20.984,23.83]
[1680638503250,1.75222485,20.988,20.984,23.83]
[1680638503549,1.75222485,20.987,20.984,23.83]
[1680638503746,1.75222485,20.986,20.982,0.06760621]
[1680638503943,1.75222485,20.985,20.981,23.83]
[1680638504141,1.75222485,20.99,20.981,23.83]
[1680638504342,1.75222485,20.989,20.981,23.83]
[1680638504547,1.75222485,20.988,20.981,23.83]
[1680638504749,1.75222485,20.987,20.981,23.83]
[1680638504949,1.75222485,20.986,20.981,23.83]
[1680638505150,1.75222485,20.985,20.981,23.83]
[1680638505353,1.75222485,20.984,20.981,23.83]
[1680638505551,0.06173501,20.991,20.981,23.83]
[1680638505752,1.81416787,20.991,20.981,23.83]
[1680638507957,23.79,20.989,20.978,23.83]
[1680638508156,1.75243286,20.988,20.978,23.83]
[1680638508455,11.75243286,20.988,20.978,23.83]
[1680638508656,1.75243286,20.987,20.978,23.83]
[1680638509454,25.58243286,20.986,20.977,0.06211706]
[1680638509656,11.75243286,20.985,20.977,0.06211706]
[1680638509960,1.75243286,20.984,20.977,0.06211706]
[1680638511161,1.75243286,20.983,20.977,0.06211706]
[1680638511353,1.75243286,20.982,20.974,23.83]
[1680638511655,10.0600239,20.985,20.974,23.83]
[1680638511855,1.7526275,20.984,20.974,23.83]
[1680638515060,1.7526275,20.983,20.974,23.83]
[1680638515359,11.7526275,20.982,20.974,23.83]
[1680638515556,10.0600239,20.985,20.974,23.83]
[1680638515757,1.75263637,20.984,20.974,23.83]
[1680638516361,1.75263637,20.983,20.974,23.83]
[1680638516560,1.75263637,20.982,20.974,23.83]
[1680638516764,10.0600239,20.985,20.974,23.83]
[1680638516962,1.75263897,20.984,20.974,23.83]
[1680638517759,1.75263897,20.983,20.974,23.83]
[1680638517955,1.75263897,20.982,20.974,23.83]
[1680638518154,1.75263897,20.981,20.974,23.83]
[1680638518363,0.0600239,20.985,20.974,23.83]
[1680638518664,1.81283977,20.985,20.974,23.83]
[1680638518859,10.0,20.984,20.974,23.83]
[1680638519060,1.75281587,20.983,20.974,23.83]
[1680638520857,1.75281587,20.982,20.974,23.83]
[1680638521061,1.75281587,20.981,20.974,23.83]
[1680638521262,10.0600239,20.985,20.974,23.83]
[1680638521461,1.75279763,20.984,20.974,23.83]
[1680638522167,25.58279763,20.984,20.973,0.06692718]
[1680638522366,1.75279763,20.983,20.973,0.06692718]
[1680638522667,10.0,20.982,20.973,0.06692718]
[1680638522869,1.75279763,20.981,20.973,0.06692718]
[1680638523359,10.0,20.983,20.973,0.06692718]
[1680638523558,1.75280596,20.982,20.973,0.06692718]
[1680638525564,1.75280596,20.981,20.973,0.06692718]
[1680638526468,10.0,20.983,20.973,0.06692718]
[1680638526767,1.75281452,20.982,20.973,0.06692718]
[1680638527170,71.2722,20.984,20.973,0.06692718]
[1680638527369,1.75263309,20.983,20.973,0.06692718]
[1680638530071,1.75263309,20.983,20.976,23.83]
[1680638530476,0.0600239,20.985,20.976,23.83]
[1680638530772,0.0600239,20.985,20.982,23.83]
[1680638531069,1.75245138,20.985,20.982,23.83]
[1680638532072,1.75245138,20.985,20.98,23.83]
[1680638533570,1.75245138,20.985,20.977,23.83]
[1680638547379,1.75245138,20.985,20.978,23.83]
[1680638547578,1.75245138,20.988,20.978,23.83]
[1680638547779,1.75245138,20.988,20.979,10.0]
[1680638548175,1.75245138,20.988,20.978,23.83]
[1680638550580,9.61342032,20.987,20.978,23.83]
[1680638550877,11.75245138,20.986,20.978,23.83]
[1680638551180,1.75245138,20.985,20.978,23.83]
[1680638551978,1.75245138,20.985,20.976,23.83]
[1680638552277,1.75245138,20.985,20.977,10.0]
[1680638552478,1.75245138,20.984,20.976,23.83]
[1680638552678,11.75245138,20.986,20.976,23.83]
[1680638552879,1.75245138,20.985,20.976,23.83]
[1680638553681,1.75245138,20.984,20.976,23.83]
[1680638553980,1.75245138,20.983,20.976,23.83]
[1680638554183,10.0,20.986,20.976,23.83]
[1680638554381,1.75245144,20.985,20.976,23.83]
[1680638554581,1.75245144,20.984,20.976,23.83]
[1680638554874,1.75245144,20.983,20.976,23.83]
[1680638555078,1.75245144,20.982,20.976,23.83]
[1680638555281,10.0688154,20.986,20.976,23.83]